[Event "GER-chW 2019"]
[Site "Magdeburg"]
[Date "2019.05.28"]
[Round "3.4"]
[White "Zimmer, Elke"]
[Black "Kunze, Kerstin"]
[Result "1/2-1/2"]
[ECO "B22"]
[WhiteElo "1926"]
[BlackElo "2066"]
[Annotator "NA"]
[PlyCount "80"]
[EventDate "2019.05.26"]
[EventType "tourn"]
[EventCountry "GER"]
[SourceTitle "playchess.com"]
[Source "ChessBase"]
[SourceQuality "1"]
[TimeControl "40/5400+30:1800+30"]

1. e4 {[%emt 0:00:00]} c5 {[%emt 0:00:00]} 2. c3 {[%emt 0:00:00]} Nf6 {[%emt 0:01:06]} 3. e5 {[%emt 0:01:43]} Nd5 {[%emt 0:00:44]} 4. Nf3 {[%emt 0:04:36]} e6 {[%emt 0:19:29]} 5. Na3 {[%emt 0:08:58]} (5. d4 cxd4 6. cxd4 d6 7. Bc4 Nb6 8. Bd3 Nc6 9. O-O Nb4 10. Bg5 Be7 11. Bxe7 Qxe7 12. Nc3 dxe5 13. dxe5 Nxd3 14. Qxd3 Bd7 15. Ne4 O-O 16. Nd4 Rad8 17. Rad1 Bc6 18. Nxc6 bxc6 {½-½ (34) Liang,A (2590)-Caruana,F (2828) Saint Louis 2019}) 5... d6 {[%emt 0:20:44]} 6. Nc4 {[%emt 0:02:15] B22: Sicilian: 2 c3} dxe5 {[%emt 0:02:08]} 7. Ncxe5 {[%emt 0:08:37]} Bd6 {[%emt 0:25:04]} 8. Bb5+ {[%emt 0:07:14]} Nd7 {[%emt 0:01:53]} 9. Qa4 $146 {[%emt 0:06:10]} ({Predecessor:} 9. O-O O-O 10. d4 cxd4 11. cxd4 f6 12. Nd3 a6 {½-½ (35) Travkina,A (2189)-Purgar,I (2091) Porto Carras 2010}) 9... Qc7 {[%emt 0:08:51]} 10. Nxd7 {[%emt 0:02:49]} Bxd7 {[%emt 0:00:11]} 11. Bxd7+ {[%emt 0:00:05]} Qxd7 {[%emt 0:00:03]} 12. Qxd7+ {[%emt 0:00:09]} Kxd7 {[%emt 0:00:02]} 13. d3 {[%emt 0:00:08]} h6 {[%emt 0:04:08]} 14. g3 {[%emt 0:00:24]} Rhd8 {[%emt 0:00:12]} 15. Nd2 {[%emt 0:01:34]} Ke8 {[%emt 0:01:12]} 16. Ne4 {[%emt 0:00:48]} Be7 {[%emt 0:00:13]} 17. f3 {[%emt 0:01:20]} Rd7 {[%emt 0:02:19]} 18. Ke2 {[%emt 0:00:48]} Rad8 {[%emt 0:00:11]} 19. Rd1 {[%emt 0:00:14]} e5 {[%emt 0:01:47]} 20. a3 {[%emt 0:00:55]} f5 {[%emt 0:01:51]} 21. Nf2 {[%emt 0:00:19]} Bf6 {[%emt 0:00:55]} 22. Be3 {[%emt 0:02:01]} b6 {[%emt 0:00:14]} 23. c4 {[%emt 0:02:30]} Nc7 {[%emt 0:00:11]} 24. Rab1 {[%emt 0:00:22]} Ne6 {[%emt 0:00:19]} 25. b4 {[%emt 0:01:24]} cxb4 {[%emt 0:01:48]} 26. axb4 {[%emt 0:00:18]} g5 {[%emt 0:00:06]} 27. c5 {[%emt 0:08:47]} bxc5 {[%emt 0:00:56]} 28. Bxc5 {[%emt 0:00:06]} Be7 {[%emt 0:00:15]} 29. Rdc1 {[%emt 0:09:51]} (29. g4 $11 {keeps the balance.}) 29... Bxc5 {[%emt 0:00:34]} 30. bxc5 {[%emt 0:00:05]} Nd4+ {[%emt 0:01:23]} 31. Ke3 {[%emt 0:00:01]} f4+ {[%emt 0:02:46]} ({Better is} 31... Ke7 $17 32. c6 Rc7) 32. Ke4 {[%emt 0:03:25]} fxg3 {[%emt 0:00:08]} 33. hxg3 {[%emt 0:00:05]} Ne2 {[%emt 0:00:04]} 34. c6 {[%emt 0:09:42]} Nxg3+ {[%emt 0:00:53]} (34... Rd4+ $1 $15 35. Ke3 Nxc1 36. Rxc1 Ke7) 35. Ke3 {[%emt 0:00:13]} Nf5+ 36. Ke4 Ng3+ {[%emt 0:01:09]} 37. Ke3 {[%emt 0:00:28]} Nf5+ $11 {[%emt 0:00:16]} 38. Ke4 Ng3+ {[%emt 0:00:34]} 39. Ke3 {[%emt 0:00:14]} Rc7 40. Ng4 e4 {Kxe4} 1/2-1/2

[Event "GER-chW 2019"]
[Site "Magdeburg"]
[Date "2019.05.28"]
[Round "3.5"]
[White "Von Herman, Brigitte"]
[Black "Lowke, Kathrin"]
[Result "1-0"]
[ECO "B22"]
[WhiteElo "2064"]
[BlackElo "1887"]
[Annotator "NA RC"]
[PlyCount "59"]
[EventDate "2019.05.26"]
[EventType "tourn"]
[EventCountry "GER"]
[SourceTitle "playchess.com"]
[Source "ChessBase"]
[SourceQuality "1"]
[TimeControl "40/5400+30:1800+30"]

1. e4 {[%emt 0:00:00]} c5 {[%emt 0:00:00]} 2. c3 {[%emt 0:00:00]} d5 {[%emt 0:00:00]} 3. exd5 {[%emt 0:00:00]} Qxd5 {[%emt 0:00:00]} 4. d4 {[%emt 0:00:00]} g6 {[%emt 0:00:00]} 5. Nf3 {[%emt 0:00:28]} cxd4 {[%emt 0:05:41]} 6. cxd4 {[%emt 0:07:38]} Qa5+ {[%emt 0:03:25]} 7. Nc3 {[%emt 0:01:29]} Bg7 {[%emt 0:00:18]} 8. Qb3 {[%emt 0:11:41] B27: Sicilian: 2 Nf3, unusual Black 2nd moves} Nf6 {[%emt 0:06:52]} 9. Bc4 {[%emt 0:03:16]} e6 {[%emt 0:04:48]} 10. O-O {[%emt 0:02:38]} O-O {[%emt 0:00:08]} 11. Bd2 {[%emt 0:09:39]} Nc6 $146 {[%emt 0:04:12]} ({Predecessor:} 11... Qf5 12. d5 exd5 13. Nxd5 Nxd5 14. Bxd5 {1-0 (26) Bellini,F (2492)-Rasovic,D (2061) Switzerland 2008}) 12. Rad1 {[%emt 0:13:03]} a6 $2 {[%emt 0:06:12]} (12... Qc7 $11 {and Black stays safe.}) 13. d5 {[%emt 0:01:23]} exd5 {[%emt 0:02:57]} (13... b5 $142) 14. Nxd5 {[%emt 0:01:18]} Qc5 {[%emt 0:01:32]} 15. Be3 {[%emt 0:03:07]} Qd6 {[%emt 0:02:45]} (15... Qa5 $142 16. Bb6 Nxd5 17. Bxa5 Nxa5) 16. Bf4 {[%emt 0:08:49]} Qc5 {[%emt 0:03:06]} 17. Nxf6+ {[%emt 0:02:39]} Bxf6 {[%emt 0:00:17]} 18. Bd6 {[%emt 0:00:35]} Qh5 {[%emt 0:03:15]} (18... Qa5 $142 19. Bxf8 Kxf8 20. Bxf7 Qb4 21. Qxb4+ Nxb4) 19. Bxf8 {[%emt 0:01:00]} Kxf8 {[%emt 0:00:05]} 20. Bxf7 {[%emt 0:00:49]} Bg4 $2 {[%emt 0:01:01]} (20... Qb5 21. h3 Na5) 21. Bg8 {[%emt 0:08:17]} g5 {[%emt 0:03:44]} 22. Qxb7 {[%emt 0:02:43]} Rc8 {[%emt 0:03:21]} 23. Bd5 {[%emt 0:04:30]} Ne5 {[%emt 0:06:03]} 24. Nxe5 {[%emt 0:01:19]} Bxe5 {[%emt 0:00:19]} 25. g3 {[%emt 0:00:16]} Rb8 {[%emt 0:00:45]} 26. f3 {[%emt 0:05:52]} Bh3 {[%emt 0:04:18]} 27. Qc6 {[%emt 0:01:54]} Bxf1 {[%emt 0:09:04]} (27... Qg6 $18 28. Qxg6 hxg6) 28. Qc5+ {[%emt 0:00:32]} Kg7 {[%emt 0:07:14]} 29. Qe7+ {[%emt 0:00:12] Double Attack} Kh6 {[%emt 0:00:14]} 30. Qxe5 {[%emt 0:01:06]} 1-0

[Event "GER-chW 2019"]
[Site "Magdeburg"]
[Date "2019.05.28"]
[Round "3.6"]
[White "Schmidt, Jade"]
[Black "Perez Celis, Alba"]
[Result "1-0"]
[ECO "E81"]
[WhiteElo "2062"]
[BlackElo "1822"]
[Annotator "NA"]
[PlyCount "65"]
[EventDate "2019.05.26"]
[EventType "tourn"]
[EventCountry "GER"]
[SourceTitle "playchess.com"]
[Source "ChessBase"]
[SourceQuality "1"]
[TimeControl "40/5400+30:1800+30"]

1. d4 {[%emt 0:00:00]} Nf6 {[%emt 0:00:00]} 2. c4 {[%emt 0:00:00]} g6 {[%emt 0:00:13]} 3. Nc3 {[%emt 0:00:00]} Bg7 {[%emt 0:00:28]} 4. e4 {[%emt 0:00:01]} d6 {[%emt 0:00:32]} 5. f3 {[%emt 0:00:36]} O-O {[%emt 0:02:01]} 6. Bg5 {[%emt 0:03:25]} c5 {[%emt 0:00:17]} 7. d5 {[%emt 0:00:13]} e6 {[%emt 0:00:12]} 8. Qd2 {[%emt 0:00:14]} exd5 {[%emt 0:01:16]} 9. cxd5 {[%emt 0:00:30]} a6 {[%emt 0:06:30]} 10. a4 {[%emt 0:00:29]} Qa5 {[%emt 0:01:09]} 11. Ra3 {[%emt 0:00:15] A65: Modern Benoni: 6 e4} Nbd7 {[%emt 0:03:33]} 12. Nge2 {[%emt 0:04:44]} Ne5 {[%emt 0:03:08]} 13. Nc1 {[%emt 0:01:11]} Re8 {[%emt 0:15:51] [#]} 14. h3 $146 {[%emt 0:01:52]} ({Predecessor:} 14. Be2 c4 15. O-O Bd7 16. Be3 h6 17. N1a2 Rac8 18. Rb1 g5 19. b4 Qd8 20. b5 a5 21. b6 {1-0 (37) Erdos,V (2581)-Varga,C (2392) Balatonlelle 2009}) 14... Nh5 {[%emt 0:07:43]} 15. Kf2 {[%emt 0:03:51]} f5 {[%emt 0:27:58]} 16. Be2 {[%emt 0:44:48]} Rf8 {[%emt 0:09:54]} 17. exf5 {[%emt 0:17:34]} Bxf5 {[%emt 0:04:14]} 18. g4 {[%emt 0:01:02] [#]} Bxg4 {[%emt 0:05:34]} (18... h6 $1 $11 {[%mdl 512] keeps the balance.} 19. N3a2 (19. Bxh6 Bxh6) 19... Qc7 20. Bxh6 Bxh6 21. Qxh6 Bxg4 {[%mdl 64] Pin}) 19. hxg4 {[%emt 0:00:16]} Nxg4+ {[%emt 0:00:06]} 20. Kg2 {[%emt 0:00:07]} Ne5 {[%emt 0:06:19]} (20... Ngf6 $16 {is a better defense.} 21. Nd3 Rae8) 21. f4 {[%emt 0:04:06]} h6 $2 {[%emt 0:00:40]} (21... Nf7) 22. fxe5 {[%emt 0:01:22]} hxg5 {[%emt 0:00:08]} 23. Bxh5 {[%emt 0:00:07]} gxh5 {[%emt 0:00:24]} 24. Qxg5 {[%emt 0:02:14]} Qb4 {[%emt 0:00:06]} 25. Nd3 {[%emt 0:04:27]} (25. Qxh5 $142 Qxb2+ 26. N3e2 Qxe5 27. Qh7+ Kf7 28. Rh5 Qxh5 29. Qxh5+ Kg8 30. Rh3) 25... Qd4 {[%emt 0:00:17]} 26. Rh3 {[%emt 0:02:55]} c4 {[%emt 0:00:24]} (26... Qg4+ $142 27. Rg3 Qxg5 28. Rxg5 c4) 27. Rg3 {[%emt 0:00:10]} Rf7 {[%emt 0:00:10]} 28. e6 {[%emt 0:00:31]} Rff8 {[%emt 0:00:49]} 29. Ne2 {[%emt 0:06:36]} Qe4+ {[%emt 0:00:10] [#]} 30. Kg1 $1 {[%emt 0:00:11]} Qh7 {[%emt 0:01:03]} 31. Ndf4 $18 {[%emt 0:00:27]} Qb1+ {[%emt 0:00:20]} 32. Kh2 {[%emt 0:00:33]} Qxb2 {[%emt 0:00:07]} 33. Rac3 {[%emt 0:00:30]} 1-0

[Event "GER-chW 2019"]
[Site "Magdeburg"]
[Date "2019.05.28"]
[Round "3.7"]
[White "Liu, Sijia Anna"]
[Black "Erofeev, Anastasia"]
[Result "1-0"]
[ECO "B42"]
[WhiteElo "1689"]
[BlackElo "2003"]
[Annotator "NA"]
[PlyCount "73"]
[EventDate "2019.05.26"]
[EventType "tourn"]
[EventCountry "GER"]
[SourceTitle "playchess.com"]
[Source "ChessBase"]
[SourceQuality "1"]
[TimeControl "40/5400+30:1800+30"]

1. e4 {[%emt 0:00:00]} c5 {[%emt 0:00:00]} 2. Nf3 {[%emt 0:00:00]} e6 {[%emt 0:00:00]} 3. d4 {[%emt 0:00:00]} cxd4 {[%emt 0:00:00]} 4. Nxd4 {[%emt 0:00:00]} a6 {[%emt 0:00:00]} 5. Bd3 {[%emt 0:00:53]} b5 {[%emt 0:02:11]} 6. O-O {[%emt 0:01:32]} Qc7 {[%emt 0:02:51]} 7. a4 {[%emt 0:04:31]} b4 {[%emt 0:00:51] B42: Sicilian: Kan Variation: 5 Bd3} 8. c3 {[%emt 0:00:57]} Bd6 {[%emt 0:09:11]} (8... Nf6 9. Qe2 Bb7 10. Bd2 Nc6 11. Nf3 Ng4 12. h3 h5 13. Be3 Nxe3 14. Qxe3 Ne5 15. Nxe5 Qxe5 {0-1 (57) Sethuraman,S (2646)-Dzhumagaliev,Y (2400) Riadh 2017}) 9. h3 {[%emt 0:02:54]} Bb7 {[%emt 0:10:46]} 10. Bd2 {[%emt 0:13:40]} Nf6 {[%emt 0:11:50]} 11. Qe2 {[%emt 0:01:08]} bxc3 {[%emt 0:03:53]} 12. Nxc3 {[%emt 0:03:39]} Qb6 $146 {[%emt 0:06:12]} ({Predecessor:} 12... Be5 13. Nf3 Nc6 14. Rac1 Qb6 15. Nd5 {1-0 (25) Panaiotov,J (2199)-Enchev,G Plovdiv 2009}) 13. Be3 {[%emt 0:12:42]} Bc5 {[%emt 0:02:09]} (13... Qd8 $16) 14. a5 {[%emt 0:03:33]} Qc7 $2 {[%emt 0:05:44]} (14... Qd6) 15. Na4 {[%emt 0:08:19]} Ba7 {[%emt 0:09:51]} 16. Nb6 {[%emt 0:05:36]} Bxb6 {[%emt 0:03:09]} 17. axb6 {[%emt 0:00:38]} Qd8 {[%emt 0:02:03]} 18. e5 {[%emt 0:14:29]} (18. Rfc1 $142) 18... Nd5 {[%emt 0:01:54]} 19. Qg4 {[%emt 0:00:57]} g6 {[%emt 0:03:00]} 20. Nf3 {[%emt 0:02:35]} Nxe3 {[%emt 0:00:47]} 21. fxe3 {[%emt 0:00:09]} Nc6 {[%emt 0:07:36]} (21... Qxb6 $14 22. Qf4 Bxf3) 22. Qf4 {[%emt 0:02:07]} h6 $2 {[%emt 0:03:32]} (22... Qxb6 23. Nd2 Kd8) 23. Nh4 {[%emt 0:05:06]} (23. Nd2 $142 {[%csl Gf1][%cal Rf4f7]} Qxb6 24. Nc4 (24. Qxf7+ Kd8 $18)) 23... Qe7 {[%emt 0:03:56] [#]} 24. Bxg6 $1 {[%emt 0:04:12]} fxg6 $2 {[%emt 0:00:56]} (24... O-O-O) 25. Nxg6 {[%emt 0:00:12] Double Attack} Qg7 {[%emt 0:00:30]} 26. Nxh8 {[%emt 0:00:32]} Nxe5 {[%emt 0:00:27]} 27. Qf2 $2 {[%emt 0:02:40]} ({White should play} 27. Rf2 $18) 27... Qxh8 {[%emt 0:02:08]} 28. Ra5 {[%emt 0:01:21]} d6 $2 {[%emt 0:04:17] [#]} (28... O-O-O $11) 29. Rxe5 $1 {[%emt 0:02:09] Remove Defender} Qg8 {[%emt 0:01:55]} 30. Rh5 {[%emt 0:02:17]} Qg7 {[%emt 0:01:59]} 31. Rh4 {[%emt 0:01:25]} O-O-O {[%emt 0:00:41]} 32. Rg4 {[%emt 0:02:02]} Qe5 {[%emt 0:00:51]} 33. Rc1+ {[%emt 0:01:02]} Kb8 {[%emt 0:00:15]} 34. Rc7 {[%emt 0:01:07]} Bd5 {[%emt 0:00:49]} 35. Qe2 {[%emt 0:01:03]} Rf8 {[%emt 0:00:36]} 36. Qxa6 {[%emt 0:00:55]} Qxe3+ {[%emt 0:00:10]} 37. Kh2 {[%emt 0:00:18]} 1-0

[Event "GER-chW 2019"]
[Site "Magdeburg"]
[Date "2019.05.28"]
[Round "3.8"]
[White "Mehling, Katharina"]
[Black "Ley, Sabrina"]
[Result "1-0"]
[ECO "B01"]
[WhiteElo "1974"]
[BlackElo "1870"]
[Annotator "NA"]
[PlyCount "135"]
[EventDate "2019.05.26"]
[EventType "tourn"]
[EventCountry "GER"]
[SourceTitle "playchess.com"]
[Source "ChessBase"]
[SourceQuality "1"]
[TimeControl "40/5400+30:1800+30"]

1. e4 {[%emt 0:00:00]} d5 {[%emt 0:00:00]} 2. exd5 {[%emt 0:00:00]} Qxd5 {[%emt 0:00:00]} 3. Nc3 {[%emt 0:00:00]} Qd6 {[%emt 0:00:00]} 4. d4 {[%emt 0:00:23]} Nf6 {[%emt 0:01:00]} 5. Nf3 {[%emt 0:03:42]} a6 {[%emt 0:00:46]} 6. g3 {[%emt 0:00:41]} g6 {[%emt 0:11:38] B01: Scandinavian Defence} 7. Bf4 {[%emt 0:05:42]} Qb4 $146 {[%emt 0:08:32]} ({Predecessor:} 7... Qd8 8. Bg2 Bg7 9. Qd2 O-O 10. Bh6 Nc6 11. d5 Nb4 12. O-O-O c6 13. Bxg7 Kxg7 14. dxc6 {1-0 (43) Ivanisevic,I (2630)-Milanovic,D (2502) Kragujevac 2017}) 8. a3 {[%emt 0:01:59]} Qa5 {[%emt 0:16:58]} 9. Be5 {[%emt 0:17:04]} c6 {[%emt 0:11:23]} 10. Bc4 {[%emt 0:13:38]} b5 {[%emt 0:07:26]} (10... Bg7 $11) 11. Ba2 {[%emt 0:04:14]} Bg7 {[%emt 0:04:08] [#]} 12. Qd2 {[%emt 0:12:20]} (12. Bxb8 $1 $16 Rxb8 13. Ne5 {[%mdl 64] Double Attack}) 12... O-O {[%emt 0:01:24]} 13. Qf4 {[%emt 0:04:22]} Qb6 {[%emt 0:07:40]} 14. Ng5 {[%emt 0:05:47]} (14. h4 $14) 14... Bf5 {[%emt 0:03:40]} 15. O-O-O {[%emt 0:01:38]} a5 {[%emt 0:04:43]} 16. f3 {[%emt 0:02:24]} b4 {[%emt 0:04:41]} 17. Nb1 {[%emt 0:00:53]} h6 {[%emt 0:06:37]} (17... Nd5 $17 18. Bxd5 cxd5 19. Bxg7 Kxg7 20. Qe5+ Qf6) 18. Ne4 {[%emt 0:00:35]} (18. Nxf7 $11 {keeps the balance.} Rxf7 19. Bxf6 Bxf6 20. Qxh6) 18... Nbd7 {[%emt 0:01:24]} (18... Bxe4 $5 19. fxe4 Nbd7 $11) 19. g4 $2 {[%emt 0:00:40]} ({White must play} 19. Nxf6+ $1 $11 Nxf6 20. g4) 19... Bxe4 {[%emt 0:01:17]} (19... Nxe5 $19 20. dxe5 Nxe4 21. fxe4 Bc8) 20. fxe4 {[%emt 0:00:57]} Nxe5 {[%emt 0:00:57]} 21. dxe5 {[%emt 0:00:30]} Ne8 {[%emt 0:01:43]} 22. Rhf1 {[%emt 0:00:39]} e6 {[%emt 0:00:29]} 23. Rd7 {[%emt 0:01:26]} (23. a4 $17 {keeps fighting.}) 23... Ra7 {[%emt 0:00:07]} 24. Bxe6 {[%emt 0:01:30]} Rxd7 {[%emt 0:02:37]} 25. Bxd7 {[%emt 0:00:10] [#]} Nc7 $1 {[%emt 0:00:33]} 26. axb4 {[%emt 0:02:46]} axb4 {[%emt 0:01:11]} 27. Nd2 $2 {[%emt 0:03:27]} (27. h4) 27... Nb5 $2 {[%emt 0:01:10]} (27... Qd4 $19 28. Be8 Nxe8) 28. Qf2 $2 {[#]} (28. e6 $17 {was called for.} fxe6 {[%mdl 64] Discovered Attack} 29. Bxe6+ Kh7 30. Bf7) 28... Qxf2 $2 {[%emt 0:00:53]} (28... Qa6 $1 $19 {[%cal Ra6a1]} 29. Nc4 Nc3) 29. Rxf2 {[%emt 0:02:38]} Bxe5 {[%emt 0:00:26]} 30. Bxc6 {[%emt 0:00:12]} Nd4 {[%emt 0:00:43]} 31. Bd5 {[%emt 0:00:14]} Nb5 {[%emt 0:00:25]} ({Black should play} 31... Bf4 $14) 32. Nc4 {[%emt 0:00:28]} Bg7 {[%emt 0:00:05]} 33. Na5 {[%emt 0:01:04]} Nd6 {[%emt 0:00:41]} (33... Nd4 $16 {was necessary.} 34. Nb7 Ne6) 34. Rf3 {[%emt 0:01:03]} Be5 {[%emt 0:00:39]} 35. h3 {[%emt 0:00:23]} Nb5 {[%emt 0:00:30]} 36. Nc6 {[%emt 0:00:23]} Bd6 {[%emt 0:00:39]} 37. Bc4 {[%emt 0:01:46]} Nc7 {[%emt 0:00:20]} 38. Rf6 {[%emt 0:01:31]} Ne8 {[%emt 0:00:51]} 39. Rf3 {[%emt 0:03:28]} Bc5 {[%emt 0:00:19]} 40. e5 {[%emt 0:03:10]} Nc7 {[%emt 0:00:45]} 41. Rxf7 {[%emt 0:34:28]} Rxf7 {[%emt 0:04:44]} 42. Nd8 {[%emt 0:00:00]} Kg7 {[%emt 0:01:23]} 43. Nxf7 {[%emt 0:00:00]} Na8 {[%emt 0:00:29]} 44. Nd8 {[%emt 0:00:00]} Be3+ {[%emt 0:01:23]} 45. Kd1 {[%emt 0:00:00]} Nb6 {[%emt 0:00:24]} 46. Bb3 {[%emt 0:00:00]} Kf8 {[%emt 0:01:54]} 47. Nc6 {[%emt 0:00:00]} Bc5 {[%emt 0:01:45]} 48. Ke2 {[%emt 0:00:00]} Ke8 {[%emt 0:00:48]} 49. e6 {[%emt 0:00:00]} Na8 {[%emt 0:02:32]} (49... Bf8 {was called for.} 50. Kd3 Bg7 51. Nxb4 Bxb2) 50. Kd3 {[%emt 0:00:00]} Nb6 {[%emt 0:01:08]} 51. Ke4 {[%emt 0:00:00]} Bd6 {[%emt 0:01:13]} 52. Ne5 {[%emt 0:00:00]} g5 {[%emt 0:01:10]} 53. Nc6 {[%emt 0:00:00]} Kf8 {[%emt 0:01:49]} 54. c3 {[%emt 0:00:00]} bxc3 {[%emt 0:02:39]} 55. bxc3 {[%emt 0:00:00]} Nc8 {[%emt 0:00:54]} 56. Ne5 {[%emt 0:00:24]} Kg7 {[%emt 0:07:10]} 57. Nd7 {[%emt 0:00:44]} Ne7 {[%emt 0:04:37]} 58. c4 {[%emt 0:02:32]} Bc7 $18 {[%emt 0:01:23]} 59. c5 {[%emt 0:01:34]} Kg6 {[%emt 0:00:37]} 60. Kd4 {[%emt 0:02:43]} Kg7 {[%emt 0:00:48]} 61. Kc4 {[%emt 0:01:32]} Nc6 {[%emt 0:00:41]} 62. Bc2 {[%emt 0:01:18]} Ne5+ {[%emt 0:00:55]} 63. Nxe5 {[%emt 0:00:38]} Bxe5 {[%emt 0:00:07]} 64. Kd5 {[%emt 0:00:08]} Bf6 {[%emt 0:00:54]} 65. Kd6 {[%emt 0:00:29]} Kf8 {[%emt 0:00:26]} 66. Kd7 {[%emt 0:00:09]} Be7 {[%emt 0:00:43]} 67. c6 {[%emt 0:00:06]} h5 {[%emt 0:00:35]} 68. c7 {[%emt 0:00:13]} 1-0

[Event "GER-chW 2019"]
[Site "Magdeburg"]
[Date "2019.05.28"]
[Round "3.9"]
[White "Ries, Jutta"]
[Black "Just, Anita"]
[Result "0-1"]
[ECO "A02"]
[WhiteElo "2017"]
[BlackElo "1866"]
[Annotator "NA"]
[PlyCount "166"]
[EventDate "2019.05.26"]
[EventType "tourn"]
[EventCountry "GER"]
[SourceTitle "playchess.com"]
[Source "ChessBase"]
[SourceQuality "1"]
[TimeControl "40/5400+30:1800+30"]

{[%evp 18,148,-35,-32,32767,-22,-25,32767,32767,32767,32767,32767,1,0,7,12,32767,0,30,21,41,0,0,0,0,0,0,-36,-6,-15,0,-58,-74,-77,-65,32767,32767,32767,-56,-66,32767,-56,-52,32767,32767,32767,-36,-45,32767,32767,32767,32767,32767,-93,-82,-92,-60,-40,32767,-25,32767,-82,-41,-61,-12,32767,32767,32767,32767,32767,32767,32767,32767,32767,32767,32767,32767,32767,32767,32767,-7,-5,-4,-5,32767,32767,32767,-60,-8,-8,-8,-77,32767,32767,32767,32767,-404,-77,-218,-220,32767,32767,32767,32767,32767,32767,-14,-54,-34,0,-25,-8,-6,0,0,-8,0,0,32767,32767,0,0,0,-29969,-29970,-29972,-29977,-29985,-29968,-29982,-29980,-29980,-29981]} 1. f4 {[%emt 0:00:00]} f5 {[%emt 0:00:00]} 2. b3 {[%emt 0:00:02]} b6 {[%emt 0:00:25]} 3. Bb2 {[%emt 0:00:05]} Bb7 {[%emt 0:00:06]} 4. e3 {[%emt 0:00:20]} Nf6 {[%emt 0:01:40]} 5. Bxf6 {[%emt 0:04:32]} exf6 {[%emt 0:00:12]} 6. Nf3 {[%emt 0:00:15] A02: Bird's Opening} Nc6 $146 {[%emt 0:06:23]} ({Predecessor:} 6... Na6 7. a4 Nc5 8. a5 g6 9. a6 Bd5 10. Nc3 Bf7 11. Bc4 Ne6 12. O-O {0-1 (80) Rapport,R (2713)-Laznicka,V (2675) Novy Bor 2014}) 7. Nc3 {[%emt 0:03:01]} d5 {[%emt 0:01:23]} 8. Bd3 {[%emt 0:29:30]} Qd7 {[%emt 0:16:18]} 9. Nd4 {[%emt 0:27:52]} Nxd4 {[%emt 0:07:41]} 10. exd4 {[%emt 0:00:02]} Bd6 {[%emt 0:05:51]} 11. Qf3 {[%emt 0:07:40]} O-O {[%emt 0:08:42]} 12. O-O {[%emt 0:09:03]} c5 {[%emt 0:13:29]} 13. Bb5 {[%emt 0:03:22]} Qf7 {[%emt 0:05:08]} 14. Kh1 {[%emt 0:06:32]} cxd4 {[%emt 0:04:53]} (14... g6 $17) 15. Ne2 {[%emt 0:00:02]} Bc5 {[%emt 0:04:41]} 16. a3 {[%emt 0:00:14]} a5 {[%emt 0:04:01]} 17. Rfe1 {[%emt 0:02:05]} Rac8 {[%emt 0:03:18]} 18. Qd3 {[%emt 0:01:02]} g6 {[%emt 0:01:28]} 19. b4 {[%emt 0:00:57]} axb4 {[%emt 0:01:47]} 20. axb4 {[%emt 0:00:01]} Bxb4 {[%emt 0:01:02]} 21. Nxd4 {[%emt 0:00:02]} Ra8 {[%emt 0:00:50]} 22. Rab1 {[%emt 0:03:13]} Bc5 {[%emt 0:02:40]} 23. Ne6 {[%emt 0:00:31]} Rfc8 {[%emt 0:01:18]} 24. Nxc5 {[%emt 0:00:24]} (24. h4 $11) 24... bxc5 {[%emt 0:00:35]} 25. Qe2 {[%emt 0:00:36]} Bc6 {[%emt 0:02:04]} 26. Bxc6 {[%emt 0:00:20]} Rxc6 {[%emt 0:00:04]} 27. Qb5 {[%emt 0:00:10]} Rac8 {[%emt 0:01:06]} 28. g3 {[%emt 0:00:54]} d4 {[%emt 0:00:41]} 29. Re2 {[%emt 0:00:46]} R6c7 {[%emt 0:01:28]} 30. Rbe1 {[%emt 0:00:15]} Kg7 {[%emt 0:02:27]} 31. Re6 {[%emt 0:00:44]} Ra7 {[%emt 0:01:16]} (31... Rb7 $5 {[%cal Rb7b5]} 32. Qa6 Rbc7 $15) 32. Qb6 {[%emt 0:00:20]} Qb7+ {[%emt 0:00:37]} 33. Kg1 {[%emt 0:00:25]} Qxb6 {[%emt 0:00:46]} 34. Rxb6 {[%emt 0:00:01]} Rcc7 {[%emt 0:00:26]} 35. Reb1 {[%emt 0:01:27]} Ra2 {[%emt 0:00:35]} 36. R6b2 {[%emt 0:00:24]} Rxb2 {[%emt 0:00:16]} 37. Rxb2 {[%emt 0:00:01]} Kf7 {[%emt 0:00:21]} 38. Kf2 {[%emt 0:00:07]} Ke6 {[%emt 0:01:14]} 39. Rb6+ {[%emt 0:00:29]} (39. Ke2 $11) 39... Kd5 {[%emt 0:00:42]} 40. d3 {[%emt 0:01:39]} Ra7 {[%emt 0:00:38]} 41. Ke2 {[%emt 0:13:44]} Ra2 {[%emt 0:03:59]} 42. Kd2 {[%emt 0:00:18]} Ra1 {[%emt 0:02:38]} 43. Rb7 {[%emt 0:02:07]} h5 {[%emt 0:00:36]} 44. Rd7+ {[%emt 0:06:37]} Ke6 {[%emt 0:01:40]} 45. Rg7 {[%emt 0:00:02]} Rh1 {[%emt 0:00:46]} 46. h4 {[%emt 0:01:41]} Rh2+ {[%emt 0:02:15]} 47. Kd1 {[%emt 0:02:43]} Rg2 {[%emt 0:00:21]} 48. Rxg6 {[%emt 0:00:25]} Kf7 {[%emt 0:00:51]} 49. Rh6 {[%emt 0:00:06]} Rxg3 {[%emt 0:01:06]} 50. Rxh5 {[%emt 0:00:22]} Kg6 {[%emt 0:06:55]} 51. Rh8 {[%emt 0:00:01]} Rh3 {[%emt 0:00:25]} 52. Rc8 {[%emt 0:06:30]} ({White should play} 52. Ke2 $11) 52... Rxh4 {[%emt 0:00:14]} 53. Rxc5 {[%emt 0:00:01]} Rxf4 {[%emt 0:00:13]} 54. Rd5 {[%emt 0:00:10]} (54. Ke2 $11 {keeps the balance.}) 54... Kg5 {[%emt 0:04:53]} 55. Ke2 {[%emt 0:00:43]} Kg4 {[%emt 0:00:59]} 56. Rd6 {[%emt 0:01:35] [#]} Kg3 $1 {[%emt 0:04:17]} 57. Rxf6 {[%emt 0:00:22]} Rf2+ {[%emt 0:01:18]} 58. Ke1 {[%emt 0:00:27]} f4 {[%emt 0:01:07]} 59. Rg6+ {[%emt 0:01:32]} Kf3 {[%emt 0:00:10]} 60. Rd6 {[%emt 0:00:26]} Rxc2 {[%emt 0:01:14]} 61. Rxd4 {[%emt 0:00:02]} Re2+ {[%emt 0:01:28]} 62. Kd1 {[%emt 0:00:46]} Rh2 {[%emt 0:00:19]} 63. Ke1 $1 {[%emt 0:00:45]} Rh1+ {[%emt 0:00:46]} 64. Kd2 {[%emt 0:00:01]} Kg3 {[%emt 0:00:25]} 65. Rd8 {[%emt 0:00:32]} Kf2 {[%emt 0:00:53]} 66. Rg8 {[%emt 0:01:03]} Ra1 {[%emt 0:01:02]} 67. d4 {[%emt 0:00:27]} f3 {[%emt 0:01:17]} 68. d5 {[%emt 0:00:27]} Ra2+ {[%emt 0:01:22]} 69. Kd1 {[%emt 0:00:22]} Ra4 {[%emt 0:00:27]} 70. Rg5 $2 {[%emt 0:00:45]} (70. Kc2 $11) 70... Rd4+ {[%emt 0:00:23]} 71. Kc2 {[%emt 0:00:01]} Ke3 {[%emt 0:01:19]} 72. Kc3 {[%emt 0:01:00]} Rd1 {[%emt 0:00:59]} 73. Kc2 {[%emt 0:00:26]} Ra1 {[%emt 0:00:35]} 74. d6 {[%emt 0:00:29]} f2 {[%emt 0:00:16]} 75. d7 {[%emt 0:00:34]} f1=Q {[%emt 0:00:43]} 76. Re5+ {[%emt 0:00:31]} Kf4 {[%emt 0:00:23]} 77. d8=Q {[%emt 0:00:26]} Qc1+ {[%emt 0:00:19]} 78. Kb3 {[%emt 0:00:13]} Rb1+ {[%emt 0:00:15]} 79. Ka4 {[%emt 0:00:11]} Qc4+ {[%emt 0:00:19]} 80. Ka5 {[%emt 0:00:14]} Ra1+ {[%emt 0:00:59]} 81. Kb6 {[%emt 0:00:03]} Ra6+ {[%emt 0:00:20]} 82. Kb7 {[%emt 0:00:05]} Qc6+ {[%emt 0:00:15]} 83. Kb8 {[%emt 0:00:15]} Ra8# {[%emt 0:00:15]} 0-1